[Event "*** Titled Tuesday 3|2 Blitz (Late)"]
[Site "Chess.com"]
[Date "2017.01.03"]
[Round "2"]
[White "GianmarcoVaR"]
[Black "Alexander_Moskalenko"]
[Result "0-1"]
[WhiteElo "2391"]
[BlackElo "2683"]
[TimeControl "180+2"]
[EndTime "17:22:06 PST"]
[Termination "Alexander_Moskalenko won by resignation"]

1. d4 {[%clk 0:02:35]} 1... e6 {[%clk 0:02:58]} 2. Nf3 {[%clk 0:02:35]} 2... f5
{[%clk 0:02:58.5]} 3. c4 {[%clk 0:02:34]} 3... Nf6 {[%clk 0:03:00.4]} 4. g3
{[%clk 0:02:35.2]} 4... Bb4+ {[%clk 0:03:01.7]} 5. Bd2 {[%clk 0:02:35.9]} 5...
a5 {[%clk 0:03:01.1]} 6. Bg2 {[%clk 0:02:37]} 6... b6 {[%clk 0:02:52.3]} 7. Ne5
{[%clk 0:02:30.8]} 7... Ra7 {[%clk 0:02:51.6]} 8. O-O {[%clk 0:02:26.1]} 8...
Bxd2 {[%clk 0:02:52.8]} 9. Qxd2 {[%clk 0:02:26.4]} 9... O-O {[%clk 0:02:54.7]}
10. Nc3 {[%clk 0:02:27]} 10... Bb7 {[%clk 0:02:50.9]} 11. d5 {[%clk 0:02:26.3]}
11... d6 {[%clk 0:02:45.6]} 12. Nf3 {[%clk 0:02:26.2]} 12... e5 {[%clk
0:02:47.1]} 13. Ng5 {[%clk 0:02:26.4]} 13... Bc8 {[%clk 0:02:44.3]} 14. f4
{[%clk 0:02:17.6]} 14... e4 {[%clk 0:02:25.1]} 15. Nh3 {[%clk 0:02:13.1]} 15...
Bd7 {[%clk 0:02:25.1]} 16. Nf2 {[%clk 0:02:13.7]} 16... Na6 {[%clk 0:02:21.1]}
17. Nfd1 {[%clk 0:02:14]} 17... Nc5 {[%clk 0:02:22.4]} 18. b3 {[%clk 0:02:11.4]}
18... Kh8 {[%clk 0:02:23]} 19. Ne3 {[%clk 0:02:12.4]} 19... Qe7 {[%clk
0:02:22.7]} 20. Rab1 {[%clk 0:02:02.9]} 20... g6 {[%clk 0:02:20.5]} 21. Ncd1
{[%clk 0:02:01.4]} 21... h5 {[%clk 0:02:21]} 22. h4 {[%clk 0:01:57.3]} 22... Kh7
{[%clk 0:02:21.6]} 23. Bh3 {[%clk 0:01:58.5]} 23... b5 {[%clk 0:02:17.1]} 24.
cxb5 {[%clk 0:01:56.5]} 24... Bxb5 {[%clk 0:02:18.1]} 25. Nc3 {[%clk 0:01:53.3]}
25... Re8 {[%clk 0:02:18.9]} 26. Nxb5 {[%clk 0:01:53.3]} 26... Rb7 {[%clk
0:02:19.6]} 27. Nd4 {[%clk 0:01:54.4]} 27... Qd7 {[%clk 0:02:07.3]} 28. Qxa5
{[%clk 0:01:50.6]} 28... Reb8 {[%clk 0:02:07.1]} 29. Rfc1 {[%clk 0:01:44.2]}
29... Rb6 {[%clk 0:02:07.9]} 30. Rxc5 {[%clk 0:01:44.4]} 30... dxc5 {[%clk
0:02:07]} 31. Qxc5 {[%clk 0:01:46]} 31... Nxd5 {[%clk 0:02:02.4]} 32. Nxd5
{[%clk 0:01:23]} 32... Rd6 {[%clk 0:02:01.4]} 33. Qxc7 {[%clk 0:00:56.4]} 33...
Qxc7 {[%clk 0:01:56.5]} 34. Nxc7 {[%clk 0:00:57.4]} 34... Rxd4 {[%clk
0:01:58.4]} 35. Ne6 {[%clk 0:00:40]} 35... Rd2 {[%clk 0:01:58.8]} 36. Kf2 {[%clk
0:00:41.5]} 36... Rxa2 {[%clk 0:01:58.9]} 37. Nd4 {[%clk 0:00:41.7]} 37... Rb4
{[%clk 0:01:55.6]} 38. Ke3 {[%clk 0:00:41.7]} 38... Ra3 {[%clk 0:01:56]} 39. Bf1
{[%clk 0:00:41.5]} 39... Kh6 {[%clk 0:01:56.3]} 40. Rb2 {[%clk 0:00:37.6]} 40...
Kh7 {[%clk 0:01:51.7]} 41. Bg2 {[%clk 0:00:37.5]} 41... Kh6 {[%clk 0:01:53.1]}
42. Rd2 {[%clk 0:00:33.5]} 42... Kh7 {[%clk 0:01:43.7]} 43. Kf2 {[%clk
0:00:34.2]} 43... Rb6 {[%clk 0:01:39.8]} 44. Bf1 {[%clk 0:00:33.7]} 44... Ra1
{[%clk 0:01:33.4]} 45. e3 {[%clk 0:00:34.2]} 45... Rb1 {[%clk 0:01:34.9]} 46.
Be2 {[%clk 0:00:34.5]} 46... Rb7 {[%clk 0:01:36.4]} 47. Bc4 {[%clk 0:00:30.1]}
47... Ra7 {[%clk 0:01:36.5]} 48. b4 {[%clk 0:00:26.1]} 48... Raa1 {[%clk
0:01:30.3]} 49. Nc2 {[%clk 0:00:19.7]} 49... Ra4 {[%clk 0:01:28.6]} 50. Bb5
{[%clk 0:00:17.2]} 50... Ra2 {[%clk 0:01:28.5]} 51. Bc4 {[%clk 0:00:16.9]} 51...
Rab2 {[%clk 0:01:27.7]} 52. b5 {[%clk 0:00:15.7]} 52... Rc1 {[%clk 0:01:27.9]}
53. Be2 {[%clk 0:00:05.2]} 53... Rcxc2 {[%clk 0:01:27.4]} 54. Rxc2 {[%clk
0:00:06.4]} 54... Rxc2 {[%clk 0:01:29.3]} 55. Ke1 {[%clk 0:00:06.2]} 55... Kg7
{[%clk 0:01:29.2]} 56. Kd1 {[%clk 0:00:05.5]} 56... Rb2 {[%clk 0:01:30.7]} 57.
Ke1 {[%clk 0:00:04]} 57... Kf6 {[%clk 0:01:31.4]} 58. Kd1 {[%clk 0:00:05.3]}
58... Ke7 {[%clk 0:01:32.2]} 59. Ke1 {[%clk 0:00:05.9]} 59... Kd6 {[%clk
0:01:33.3]} 60. Kd1 {[%clk 0:00:07.2]} 60... Kc5 {[%clk 0:01:34]} 61. Ke1 {[%clk
0:00:08.6]} 61... Kb4 {[%clk 0:01:34.3]} 62. Kd1 {[%clk 0:00:07.9]} 62... Kc3
{[%clk 0:01:35.6]} 63. Ke1 {[%clk 0:00:09.1]} 63... Rb4 {[%clk 0:01:36.5]} 64.
Kf1 {[%clk 0:00:08.5]} 64... Kd2 {[%clk 0:01:36.7]} 65. Kf2 {[%clk 0:00:09.7]}
65... Rb2 {[%clk 0:01:37.7]} 66. Bc4 {[%clk 0:00:10.8]} 66... Kc3+ {[%clk
0:01:38.7]} 67. Be2 {[%clk 0:00:11.8]} 67... Ra2 {[%clk 0:01:39.5]} 68. Kf1
{[%clk 0:00:12.1]} 68... Kd2 {[%clk 0:01:38.7]} 69. Kf2 {[%clk 0:00:13.4]} 69...
Ra3 {[%clk 0:01:35.8]} 70. Bc4 {[%clk 0:00:07.1]} 70... Rxe3 {[%clk 0:01:30.4]}
71. b6 {[%clk 0:00:06.9]} 71... Re1 {[%clk 0:01:31.5]} 72. b7 {[%clk 0:00:04.3]}
72... Rb1 {[%clk 0:01:32.3]} 73. Bf7 {[%clk 0:00:05]} 73... e3+ {[%clk
0:01:33.2]} 74. Kf3 {[%clk 0:00:04.9]} 74... e2 {[%clk 0:01:33.2]} 0-1

[Event "*** Titled Tuesday 3|2 Blitz (Late)"]
[Site "Chess.com"]
[Date "2017.01.03"]
[Round "2"]
[White "Anton_Demchenko"]
[Black "yian123"]
[Result "1-0"]
[WhiteElo "2653"]
[BlackElo "2381"]
[TimeControl "180+2"]
[EndTime "17:22:47 PST"]
[Termination "Anton_Demchenko won by resignation"]

1. e4 {[%clk 0:03:01.9]} 1... e5 {[%clk 0:02:59.5]} 2. Nf3 {[%clk 0:03:01.8]}
2... Nc6 {[%clk 0:03:00]} 3. Bc4 {[%clk 0:03:03]} 3... Bc5 {[%clk 0:03:00.2]} 4.
d3 {[%clk 0:03:03.7]} 4... Nf6 {[%clk 0:03:00.5]} 5. O-O {[%clk 0:03:04.7]} 5...
a6 {[%clk 0:02:59.4]} 6. c3 {[%clk 0:03:02.5]} 6... Ba7 {[%clk 0:02:55.6]} 7.
Bg5 {[%clk 0:03:02.8]} 7... h6 {[%clk 0:02:56]} 8. Bh4 {[%clk 0:03:03.4]} 8...
d6 {[%clk 0:02:55.6]} 9. Nbd2 {[%clk 0:03:03.7]} 9... Qe7 {[%clk 0:02:49.6]} 10.
a4 {[%clk 0:03:03.3]} 10... Be6 {[%clk 0:02:47.6]} 11. b4 {[%clk 0:03:03.7]}
11... g5 {[%clk 0:02:36.1]} 12. Bg3 {[%clk 0:03:03.9]} 12... h5 {[%clk
0:02:26.4]} 13. h4 {[%clk 0:03:03.1]} 13... g4 {[%clk 0:02:15]} 14. Ne1 {[%clk
0:02:48]} 14... Qd7 {[%clk 0:02:00.2]} 15. Nc2 {[%clk 0:02:22.3]} 15... Ne7
{[%clk 0:01:57.7]} 16. Bxe6 {[%clk 0:02:11.7]} 16... Qxe6 {[%clk 0:01:53.1]} 17.
d4 {[%clk 0:02:00.7]} 17... Nd7 {[%clk 0:01:50.2]} 18. Re1 {[%clk 0:01:58.7]}
18... Qf6 {[%clk 0:01:38.7]} 19. Nc4 {[%clk 0:01:53.7]} 19... Rd8 {[%clk
0:00:54.5]} 20. b5 {[%clk 0:01:49.7]} 20... Qe6 {[%clk 0:00:51.6]} 21. N2e3
{[%clk 0:01:39.1]} 21... O-O {[%clk 0:00:44.4]} 22. Qd2 {[%clk 0:01:34]} 22...
Qg6 {[%clk 0:00:32.9]} 23. Na5 {[%clk 0:01:22]} 23... Rb8 {[%clk 0:00:21.1]} 24.
Rab1 {[%clk 0:00:55.6]} 24... exd4 {[%clk 0:00:20.9]} 25. cxd4 {[%clk
0:00:55.7]} 25... Nf6 {[%clk 0:00:21.9]} 26. Bf4 {[%clk 0:00:38.8]} 26... Nxe4
{[%clk 0:00:22.2]} 27. Qd3 {[%clk 0:00:40.4]} 27... axb5 {[%clk 0:00:22.1]} 28.
Rxb5 {[%clk 0:00:40.8]} 28... c6 {[%clk 0:00:18.7]} 29. Rxb7 {[%clk 0:00:40.4]}
29... Rxb7 {[%clk 0:00:18.8]} 30. Nxb7 {[%clk 0:00:42.3]} 30... Nd5 {[%clk
0:00:19.5]} 31. Nxd5 {[%clk 0:00:40.9]} 31... cxd5 {[%clk 0:00:21.4]} 32. a5
{[%clk 0:00:42.2]} 32... Rc8 {[%clk 0:00:20.5]} 33. Rc1 {[%clk 0:00:34.2]} 33...
Rxc1+ {[%clk 0:00:19.9]} 34. Bxc1 {[%clk 0:00:36.1]} 34... Qf6 {[%clk
0:00:21.2]} 35. Be3 {[%clk 0:00:31.2]} 35... g3 {[%clk 0:00:17.8]} 36. fxg3
{[%clk 0:00:27.2]} 36... Nxg3 {[%clk 0:00:16.6]} 37. a6 {[%clk 0:00:19]} 37...
Nf5 {[%clk 0:00:16]} 38. Bf2 {[%clk 0:00:16.3]} 38... Nxd4 {[%clk 0:00:14.5]}
39. Na5 {[%clk 0:00:13.7]} 39... Nc6 {[%clk 0:00:10.9]} 40. Bxa7 {[%clk
0:00:12.8]} 40... Nxa7 {[%clk 0:00:11.5]} 41. Nb3 {[%clk 0:00:12.8]} 41... Nc6
{[%clk 0:00:10.7]} 42. Qxd5 {[%clk 0:00:13.5]} 42... Qxh4 {[%clk 0:00:08]} 43.
Kf1 {[%clk 0:00:07.9]} 43... Qf4+ {[%clk 0:00:07.3]} 44. Ke2 {[%clk 0:00:09.1]}
44... Qe5+ {[%clk 0:00:08]} 45. Qxe5 {[%clk 0:00:09.9]} 45... dxe5 {[%clk
0:00:09.1]} 46. Na5 {[%clk 0:00:06]} 46... Na7 {[%clk 0:00:07.2]} 47. Nc4 {[%clk
0:00:07.2]} 47... f6 {[%clk 0:00:07.9]} 48. Ke3 {[%clk 0:00:07.3]} 48... Kf7
{[%clk 0:00:09.2]} 49. Ke4 {[%clk 0:00:07.8]} 49... Ke6 {[%clk 0:00:10.7]} 50.
Ne3 {[%clk 0:00:08.8]} 50... Nc6 {[%clk 0:00:10.9]} 51. Nf5 {[%clk 0:00:08.9]}
51... Na7 {[%clk 0:00:10.9]} 52. Ng7+ {[%clk 0:00:09.6]} 52... Kf7 {[%clk
0:00:11.3]} 53. Nxh5 {[%clk 0:00:11.3]} 53... Ke6 {[%clk 0:00:11.5]} 54. g4
{[%clk 0:00:11.3]} 54... Nb5 {[%clk 0:00:12.2]} 55. Ng7+ {[%clk 0:00:12.4]}
55... Kd6 {[%clk 0:00:12.2]} 56. Kf5 {[%clk 0:00:10]} 56... Kc6 {[%clk
0:00:12.3]} 57. Kxf6 {[%clk 0:00:10.4]} 57... e4 {[%clk 0:00:13.4]} 58. Nf5
{[%clk 0:00:10.9]} 58... Kb6 {[%clk 0:00:13.6]} 59. g5 {[%clk 0:00:12.4]} 59...
Nc7 {[%clk 0:00:14]} 60. g6 {[%clk 0:00:12]} 60... Kxa6 {[%clk 0:00:14.7]} 61.
Kf7 {[%clk 0:00:13.5]} 61... e3 {[%clk 0:00:12]} 62. Nxe3 {[%clk 0:00:14.2]}
62... Nb5 {[%clk 0:00:13.3]} 63. Nf5 {[%clk 0:00:14.2]} 1-0

[Event "*** Titled Tuesday 3|2 Blitz (Late)"]
[Site "Chess.com"]
[Date "2017.01.03"]
[Round "3"]
[White "wonderfultime"]
[Black "AllStarShark"]
[Result "1/2-1/2"]
[WhiteElo "2636"]
[BlackElo "2218"]
[TimeControl "180+2"]
[EndTime "17:27:35 PST"]
[Termination "Game drawn by agreement"]

1. d4 {[%clk 0:03:01.3]} 1... d5 {[%clk 0:02:58.1]} 2. c4 {[%clk 0:03:02.1]}
2... dxc4 {[%clk 0:02:58.9]} 3. e4 {[%clk 0:03:01.7]} 3... Nc6 {[%clk
0:02:58.7]} 4. Nf3 {[%clk 0:02:50.6]} 4... Nf6 {[%clk 0:02:56.6]} 5. Nc3 {[%clk
0:02:43.1]} 5... Bg4 {[%clk 0:02:56.6]} 6. d5 {[%clk 0:02:43.1]} 6... Ne5 {[%clk
0:02:54.6]} 7. Bf4 {[%clk 0:02:44.2]} 7... Nfd7 {[%clk 0:02:41.8]} 8. Be2 {[%clk
0:02:43.6]} 8... Bxf3 {[%clk 0:02:38.9]} 9. gxf3 {[%clk 0:02:44.4]} 9... g6
{[%clk 0:02:28.3]} 10. Be3 {[%clk 0:02:42.4]} 10... Bg7 {[%clk 0:02:23.1]} 11.
f4 {[%clk 0:02:41.6]} 11... Nd3+ {[%clk 0:02:24.1]} 12. Bxd3 {[%clk 0:02:43]}
12... cxd3 {[%clk 0:02:25.8]} 13. Qxd3 {[%clk 0:02:44.9]} 13... O-O {[%clk
0:02:25.1]} 14. O-O {[%clk 0:02:45.9]} 14... Nb6 {[%clk 0:02:15.9]} 15. a4
{[%clk 0:02:42.1]} 15... Qd7 {[%clk 0:02:10.9]} 16. a5 {[%clk 0:02:41.1]} 16...
Qg4+ {[%clk 0:02:09.9]} 17. Kh1 {[%clk 0:02:42.1]} 17... Qf3+ {[%clk 0:02:11]}
18. Kg1 {[%clk 0:02:43.3]} 18... Qg4+ {[%clk 0:02:12]} 19. Kh1 {[%clk
0:02:44.7]} 19... Qf3+ {[%clk 0:02:13.2]} 20. Kg1 {[%clk 0:02:44.4]} 1/2-1/2

[Event "*** Titled Tuesday 3|2 Blitz (Late)"]
[Site "Chess.com"]
[Date "2017.01.03"]
[Round "3"]
[White "josiwales"]
[Black "Shivagami"]
[Result "0-1"]
[WhiteElo "2239"]
[BlackElo "2067"]
[TimeControl "180+2"]
[EndTime "17:28:03 PST"]
[Termination "Shivagami won by resignation"]

1. e4 {[%clk 0:03:02]} 1... Nc6 {[%clk 0:02:57.7]} 2. Nf3 {[%clk 0:03:01]} 2...
d6 {[%clk 0:02:58]} 3. Nc3 {[%clk 0:03:00]} 3... Nf6 {[%clk 0:02:58.1]} 4. d4
{[%clk 0:03:00.1]} 4... Bg4 {[%clk 0:02:56.8]} 5. Be3 {[%clk 0:03:00.1]} 5... e5
{[%clk 0:02:56.4]} 6. d5 {[%clk 0:02:59.4]} 6... Ne7 {[%clk 0:02:56.2]} 7. h3
{[%clk 0:02:57.7]} 7... Bd7 {[%clk 0:02:53.6]} 8. g4 {[%clk 0:02:51.5]} 8... Ng6
{[%clk 0:02:52.5]} 9. Bg2 {[%clk 0:02:51.8]} 9... Be7 {[%clk 0:02:52.1]} 10. O-O
{[%clk 0:02:52]} 10... O-O {[%clk 0:02:52.4]} 11. Qd2 {[%clk 0:02:50]} 11... h5
{[%clk 0:02:37.3]} 12. g5 {[%clk 0:02:48.4]} 12... Nh7 {[%clk 0:02:37.7]} 13. h4
{[%clk 0:02:49]} 13... Bg4 {[%clk 0:02:34.9]} 14. Ne2 {[%clk 0:02:24.5]} 14...
Qd7 {[%clk 0:02:24.5]} 15. Ng3 {[%clk 0:02:23.9]} 15... Bxf3 {[%clk 0:02:14.2]}
16. Bxf3 {[%clk 0:02:23.1]} 16... Nxh4 {[%clk 0:02:12.6]} 17. Bxh5 {[%clk
0:02:21.8]} 17... g6 {[%clk 0:02:06.4]} 18. Be2 {[%clk 0:02:19.7]} 18... Qh3
{[%clk 0:02:03.9]} 0-1

[Event "*** Titled Tuesday 3|2 Blitz (Late)"]
[Site "Chess.com"]
[Date "2017.01.03"]
[Round "3"]
[White "Assasin14"]
[Black "Caminator2000"]
[Result "0-1"]
[WhiteElo "2235"]
[BlackElo "2210"]
[TimeControl "180+2"]
[EndTime "17:29:23 PST"]
[Termination "Caminator2000 won by resignation"]

1. d4 {[%clk 0:03:02]} 1... Nf6 {[%clk 0:02:59]} 2. Bf4 {[%clk 0:03:00]} 2... e6
{[%clk 0:02:54.5]} 3. e3 {[%clk 0:02:57.7]} 3... d5 {[%clk 0:02:49]} 4. c4
{[%clk 0:02:54]} 4... Bb4+ {[%clk 0:02:45.7]} 5. Nc3 {[%clk 0:02:54.8]} 5... O-O
{[%clk 0:02:37.1]} 6. Nf3 {[%clk 0:02:53.4]} 6... b6 {[%clk 0:02:34.2]} 7. Bd3
{[%clk 0:02:44.8]} 7... Ba6 {[%clk 0:02:32]} 8. Qb3 {[%clk 0:02:42.8]} 8...
Bxc3+ {[%clk 0:02:28.7]} 9. bxc3 {[%clk 0:02:42.3]} 9... Nc6 {[%clk 0:02:26.3]}
10. Ne5 {[%clk 0:02:25.6]} 10... Na5 {[%clk 0:02:24]} 11. Qa4 {[%clk 0:02:23.5]}
11... dxc4 {[%clk 0:02:21.7]} 12. Nxc4 {[%clk 0:02:21.3]} 12... Qd5 {[%clk
0:02:19.4]} 13. Ne5 {[%clk 0:02:00]} 13... Bxd3 {[%clk 0:02:15.6]} 14. Nxd3
{[%clk 0:02:01.9]} 14... Qxg2 {[%clk 0:02:13.8]} 15. Ke2 {[%clk 0:01:58]} 15...
Ne4 {[%clk 0:02:10.4]} 16. Qc2 {[%clk 0:01:46.3]} 16... Qg4+ {[%clk 0:02:07.7]}
17. Kf1 {[%clk 0:01:21.2]} 17... Nc4 {[%clk 0:02:05.6]} 18. Rg1 {[%clk
0:01:09.9]} 18... Ned2+ {[%clk 0:01:56.4]} 0-1

[Event "*** Titled Tuesday 3|2 Blitz (Late)"]
[Site "Chess.com"]
[Date "2017.01.03"]
[Round "3"]
[White "AungTZ"]
[Black "sandromareco"]
[Result "0-1"]
[WhiteElo "2135"]
[BlackElo "2460"]
[TimeControl "180+2"]
[EndTime "17:29:47 PST"]
[Termination "sandromareco won by resignation"]

1. e4 {[%clk 0:03:02]} 1... c5 {[%clk 0:03:00.4]} 2. Nf3 {[%clk 0:03:02.5]} 2...
e6 {[%clk 0:03:01.7]} 3. d4 {[%clk 0:03:02.9]} 3... cxd4 {[%clk 0:03:03]} 4.
Nxd4 {[%clk 0:03:04]} 4... a6 {[%clk 0:03:04.3]} 5. Nc3 {[%clk 0:03:04.1]} 5...
Qc7 {[%clk 0:03:05.1]} 6. Be3 {[%clk 0:03:04.6]} 6... d6 {[%clk 0:03:05.6]} 7.
Bd3 {[%clk 0:03:05.4]} 7... b5 {[%clk 0:03:06.1]} 8. O-O {[%clk 0:03:05.5]} 8...
Bb7 {[%clk 0:03:07.2]} 9. a3 {[%clk 0:03:06.2]} 9... Nf6 {[%clk 0:03:08]} 10. f3
{[%clk 0:03:04]} 10... Be7 {[%clk 0:03:08.5]} 11. Qe2 {[%clk 0:03:04.6]} 11...
Nbd7 {[%clk 0:03:09.4]} 12. Kh1 {[%clk 0:03:03.1]} 12... O-O {[%clk 0:03:09.7]}
13. Rad1 {[%clk 0:03:03.1]} 13... Rfe8 {[%clk 0:03:10.5]} 14. f4 {[%clk
0:02:59.1]} 14... Nb6 {[%clk 0:03:05.1]} 15. Bg1 {[%clk 0:02:41.5]} 15... Nc4
{[%clk 0:02:59.3]} 16. Ndxb5 {[%clk 0:02:14.3]} 16... axb5 {[%clk 0:02:58.9]}
17. Nxb5 {[%clk 0:02:15.5]} 17... Qc6 {[%clk 0:02:59.4]} 18. Bxc4 {[%clk
0:02:16.3]} 18... Nxe4 {[%clk 0:03:00.3]} 19. Bd3 {[%clk 0:02:01.3]} 19... d5
{[%clk 0:02:52.8]} 20. Nd4 {[%clk 0:01:56.6]} 20... Qc7 {[%clk 0:02:53.2]} 21.
f5 {[%clk 0:01:52.6]} 21... Bf6 {[%clk 0:02:51.4]} 22. fxe6 {[%clk 0:01:50.2]}
22... fxe6 {[%clk 0:02:51.9]} 23. Bxe4 {[%clk 0:01:43.7]} 23... dxe4 {[%clk
0:02:52.5]} 24. c3 {[%clk 0:01:45.2]} 24... Bd5 {[%clk 0:02:53]} 25. Be3 {[%clk
0:01:40.4]} 25... Bc4 {[%clk 0:02:51.4]} 26. Qg4 {[%clk 0:01:41.2]} 26... Bxf1
{[%clk 0:02:51.4]} 27. Rxf1 {[%clk 0:01:41.7]} 27... Kh8 {[%clk 0:02:52.1]} 28.
h3 {[%clk 0:01:37.4]} 28... Rab8 {[%clk 0:02:52.6]} 29. Rf2 {[%clk 0:01:30.1]}
29... Qc4 {[%clk 0:02:48.7]} 30. Qxe4 {[%clk 0:01:28]} 30... e5 {[%clk
0:02:48.7]} 31. b3 {[%clk 0:01:28.4]} 31... Qxc3 {[%clk 0:02:46.4]} 32. Nf5
{[%clk 0:01:22.7]} 32... Qxb3 {[%clk 0:02:47.3]} 33. Nd6 {[%clk 0:01:15]} 33...
Qd1+ {[%clk 0:02:47.9]} 34. Kh2 {[%clk 0:01:15.5]} 34... Qxd6 {[%clk 0:02:47.6]}
0-1

[Event "*** Titled Tuesday 3|2 Blitz (Late)"]
[Site "Chess.com"]
[Date "2017.01.03"]
[Round "3"]
[White "Kacparov"]
[Black "andresgv36"]
[Result "1-0"]
[WhiteElo "2588"]
[BlackElo "2283"]
[TimeControl "180+2"]
[EndTime "17:30:15 PST"]
[Termination "Kacparov won by resignation"]

1. e4 {[%clk 0:03:01.2]} 1... c5 {[%clk 0:02:59.6]} 2. Nf3 {[%clk 0:03:00.5]}
2... Nc6 {[%clk 0:03:00.1]} 3. Nc3 {[%clk 0:03:00.9]} 3... e6 {[%clk 0:02:56.2]}
4. d4 {[%clk 0:03:01.4]} 4... cxd4 {[%clk 0:02:57.1]} 5. Nxd4 {[%clk 0:03:03.3]}
5... Qc7 {[%clk 0:02:58.4]} 6. Be2 {[%clk 0:03:04.5]} 6... Nf6 {[%clk 0:02:58]}
7. O-O {[%clk 0:03:05.6]} 7... Be7 {[%clk 0:02:59.2]} 8. Be3 {[%clk 0:03:06.2]}
8... O-O {[%clk 0:02:59.9]} 9. f4 {[%clk 0:03:07.2]} 9... d6 {[%clk 0:03:00.9]}
10. Kh1 {[%clk 0:03:06.9]} 10... Nxd4 {[%clk 0:03:01.8]} 11. Qxd4 {[%clk
0:03:04.6]} 11... b6 {[%clk 0:03:03.1]} 12. Bf3 {[%clk 0:03:04.2]} 12... Ba6
{[%clk 0:02:55.6]} 13. Rf2 {[%clk 0:03:02.8]} 13... e5 {[%clk 0:02:55.8]} 14.
Qd2 {[%clk 0:03:01.3]} 14... Rfe8 {[%clk 0:02:49.2]} 15. f5 {[%clk 0:03:02.3]}
15... Bb7 {[%clk 0:02:30.9]} 16. g4 {[%clk 0:03:02]} 16... d5 {[%clk 0:02:19.4]}
17. exd5 {[%clk 0:02:46.6]} 17... Bb4 {[%clk 0:02:08.5]} 18. g5 {[%clk
0:02:39.9]} 18... Bxc3 {[%clk 0:02:00.1]} 19. bxc3 {[%clk 0:02:38.5]} 19... Nxd5
{[%clk 0:01:58.3]} 20. Bxd5 {[%clk 0:02:28.5]} 20... Rad8 {[%clk 0:01:58.3]} 21.
c4 {[%clk 0:02:29.8]} 21... Qxc4 {[%clk 0:01:58.8]} 22. Bxb7 {[%clk 0:02:30.2]}
22... Rxd2 {[%clk 0:01:57.2]} 23. Rxd2 {[%clk 0:02:28.3]} 23... e4 {[%clk
0:01:29.4]} 24. g6 {[%clk 0:02:24.8]} 24... Qc3 {[%clk 0:01:20]} 25. gxf7+
{[%clk 0:02:24.9]} 25... Kxf7 {[%clk 0:01:21.2]} 26. Re1 {[%clk 0:02:26.1]}
26... Qe5 {[%clk 0:01:06.6]} 27. Bd5+ {[%clk 0:02:24.3]} 27... Ke7 {[%clk
0:01:01.1]} 28. Be6 {[%clk 0:02:08.6]} 28... Rd8 {[%clk 0:00:48.5]} 29. Bg5+
{[%clk 0:02:08.3]} 1-0

[Event "*** Titled Tuesday 3|2 Blitz (Late)"]
[Site "Chess.com"]
[Date "2017.01.03"]
[Round "3"]
[White "Elshan1985"]
[Black "nickmatta"]
[Result "1-0"]
[WhiteElo "2590"]
[BlackElo "2344"]
[TimeControl "180+2"]
[EndTime "17:30:49 PST"]
[Termination "Elshan1985 won on time"]

1. e4 {[%clk 0:03:02]} 1... e5 {[%clk 0:03:00.2]} 2. Nf3 {[%clk 0:03:02.2]} 2...
Nc6 {[%clk 0:03:01]} 3. Bb5 {[%clk 0:03:03.3]} 3... Bc5 {[%clk 0:03:02]} 4. c3
{[%clk 0:03:03.3]} 4... f5 {[%clk 0:03:02.8]} 5. d4 {[%clk 0:03:03.1]} 5... fxe4
{[%clk 0:03:03.8]} 6. Nxe5 {[%clk 0:02:53]} 6... Nf6 {[%clk 0:02:07.7]} 7. Bxc6
{[%clk 0:02:51.4]} 7... bxc6 {[%clk 0:01:59.7]} 8. dxc5 {[%clk 0:02:51.6]} 8...
Qe7 {[%clk 0:02:01.1]} 9. Qd4 {[%clk 0:02:43]} 9... Ba6 {[%clk 0:01:56.6]} 10.
Bg5 {[%clk 0:02:33.7]} 10... O-O {[%clk 0:01:48]} 11. Nd2 {[%clk 0:02:33.7]}
11... h6 {[%clk 0:01:38.8]} 12. Bh4 {[%clk 0:02:32.5]} 12... Qe6 {[%clk
0:01:28.4]} 13. Bxf6 {[%clk 0:02:15.7]} 13... Rxf6 {[%clk 0:01:03.8]} 14. Nec4
{[%clk 0:02:04.9]} 14... Rf5 {[%clk 0:00:39.6]} 15. b3 {[%clk 0:01:59.2]} 15...
Bxc4 {[%clk 0:00:26]} 16. bxc4 {[%clk 0:01:57.6]} 16... e3 {[%clk 0:00:23]} 17.
fxe3 {[%clk 0:01:56.3]} 17... Re8 {[%clk 0:00:17]} 18. e4 {[%clk 0:01:55]} 18...
Rg5 {[%clk 0:00:11.9]} 19. O-O {[%clk 0:01:55.4]} 19... Qg4 {[%clk 0:00:09.5]}
20. Rf2 {[%clk 0:01:54.6]} 20... Kh7 {[%clk 0:00:07.2]} 21. Re1 {[%clk 0:01:51]}
21... Rf8 {[%clk 0:00:04.4]} 22. e5 {[%clk 0:01:43.6]} 1-0

[Event "*** Titled Tuesday 3|2 Blitz (Late)"]
[Site "Chess.com"]
[Date "2017.01.03"]
[Round "3"]
[White "MrReinberg"]
[Black "lrj2011"]
[Result "1-0"]
[WhiteElo "2223"]
[BlackElo "2282"]
[TimeControl "180+2"]
[EndTime "17:31:02 PST"]
[Termination "MrReinberg won by checkmate"]

1. e4 {[%clk 0:03:02]} 1... d5 {[%clk 0:03:00.2]} 2. exd5 {[%clk 0:03:02.1]}
2... Nf6 {[%clk 0:03:01.5]} 3. d4 {[%clk 0:03:00.6]} 3... Bg4 {[%clk 0:03:02.5]}
4. f3 {[%clk 0:02:53.8]} 4... Bf5 {[%clk 0:03:03.5]} 5. c4 {[%clk 0:02:47.2]}
5... e6 {[%clk 0:03:03.8]} 6. Nc3 {[%clk 0:02:45.1]} 6... exd5 {[%clk
0:03:04.2]} 7. g4 {[%clk 0:02:44.8]} 7... Be6 {[%clk 0:03:04.9]} 8. g5 {[%clk
0:02:33]} 8... Ng8 {[%clk 0:03:04.1]} 9. f4 {[%clk 0:02:33.6]} 9... Nc6 {[%clk
0:02:57.7]} 10. Nge2 {[%clk 0:02:26.6]} 10... h6 {[%clk 0:02:51.1]} 11. Bg2
{[%clk 0:02:23.9]} 11... Nge7 {[%clk 0:02:47.7]} 12. O-O {[%clk 0:02:14.7]}
12... Qd7 {[%clk 0:02:40.9]} 13. cxd5 {[%clk 0:02:10.3]} 13... Nxd5 {[%clk
0:02:41.5]} 14. f5 {[%clk 0:02:09.3]} 14... Nxc3 {[%clk 0:02:31.8]} 15. fxe6
{[%clk 0:02:08.4]} 15... Nxe2+ {[%clk 0:02:31]} 16. Qxe2 {[%clk 0:02:10.3]}
16... Qxe6 {[%clk 0:02:31.2]} 17. Qb5 {[%clk 0:02:10]} 17... O-O-O {[%clk
0:02:09.5]} 18. d5 {[%clk 0:02:08]} 18... Qe5 {[%clk 0:02:10.4]} 19. Bf4 {[%clk
0:02:01.9]} 19... Qd4+ {[%clk 0:02:10.7]} 20. Kh1 {[%clk 0:02:02.3]} 20... Nb8
{[%clk 0:02:04.9]} 21. Bh3+ {[%clk 0:01:30.9]} 21... Nd7 {[%clk 0:02:01.2]} 22.
Rac1 {[%clk 0:01:30.4]} 22... Bc5 {[%clk 0:01:16.8]} 23. Qxc5 {[%clk 0:01:24.6]}
23... Qxc5 {[%clk 0:01:06.2]} 24. Rxc5 {[%clk 0:01:23.7]} 24... hxg5 {[%clk
0:01:08.1]} 25. Rxc7+ {[%clk 0:01:23.4]} 25... Kb8 {[%clk 0:01:09]} 26. Rxd7+
{[%clk 0:01:22]} 26... Kc8 {[%clk 0:01:10.1]} 27. Rc7+ {[%clk 0:00:46.4]} 27...
Kb8 {[%clk 0:01:09.7]} 28. Rc8# {[%clk 0:00:47.3]} 1-0